bitfinex-derivatives/quotes_SOLF0:USTF0_20241016
["timestamp","ask_amount","ask_price","bid_price","bid_amount"]
[1729060899035,3.2432,154.16,154.13,12.2237]
[1729060902438,1.0,154.18,154.13,8.98]
[1729060902637,3.2435,154.15,154.12,12.2239]
[1729060902835,8.98,154.15,153.96,3.01000567]
[1729060903047,8.98,154.13,154.08,8.98]
[1729060903339,3.2444,154.11,154.08,12.2247]
[1729060903539,3.2444,154.11,154.07,8.98]
[1729060903728,8.98,154.13,154.07,8.98]
[1729060904736,3.2444,154.1,154.07,17.065]
[1729060905033,3.2444,154.1,154.07,13.82]
[1729060905533,8.98,154.1,154.05,8.98]
[1729060905740,8.98,154.07,154.04,4.84]
[1729060907543,3.2455,154.05,154.02,4.84]
[1729060913544,3.2449,154.08,154.04,12.2256]
[1729060913735,12.2249,154.08,154.04,12.2256]
[1729060914243,3.2449,154.08,154.04,12.2256]
[1729060914449,8.98,154.11,154.05,8.98]
[1729060914951,3.2444,154.1,154.06,8.0851]
[1729060915434,3.2444,154.1,154.06,17.0651]
[1729060920443,3.2444,154.1,154.06,13.82]
[1729060920642,1.4181,154.15,154.09,8.98]
[1729060920945,1.4181,154.15,154.11,8.98]
[1729060921143,3.2437,154.14,154.11,8.98]
[1729060923151,1.4181,154.15,154.11,8.98]
[1729060923341,1.4181,154.15,154.12,3.2438]
[1729060923847,13.82,154.17,154.13,3.2437]
[1729060924752,8.98,154.17,154.13,3.2437]
[1729060925446,3.2432,154.16,154.13,3.2437]
[1729060925637,8.98,154.17,154.13,12.2237]
[1729060926048,12.223,154.17,154.13,12.2237]
[1729060929548,8.98,154.17,154.1,4.82]
[1729060929857,3.8205,154.18,154.1,4.82]
[1729060929858,8.98,154.15,154.1,4.82]
[1729060930040,8.98,154.13,154.1,4.82]
[1729060930241,3.244,154.12,154.1,4.82]
[1729060931750,3.2442,154.11,154.1,4.82]
[1729060932147,3.8205,154.18,154.08,8.98]
[1729060932351,3.2439,154.13,154.08,8.98]
[1729060932554,3.2439,154.13,154.09,8.98]
[1729060932750,3.2437,154.14,154.1,3.2443]
[1729060933251,3.2433,154.16,154.12,12.2239]
[1729060935247,8.98,154.17,154.12,12.2239]
[1729060935447,3.2435,154.15,154.12,12.2239]
[1729060937149,3.2431,154.17,154.14,12.2235]
[1729060937850,3.2431,154.17,154.14,3.2435]
[1729060939959,3.2436,154.14,154.11,17.0441]
[1729060940156,8.98,154.15,154.11,13.8]
[1729060940359,8.98,154.17,154.12,8.98]
[1729060940961,3.2434,154.15,154.12,12.2239]
[1729060942667,3.2436,154.14,154.12,8.98]
[1729060944065,3.2435,154.15,154.12,8.98]
[1729060944451,8.98,154.17,154.12,8.98]
[1729060945365,3.2437,154.14,154.11,8.0641]
[1729060945866,3.2437,154.14,154.11,17.0441]
[1729060947761,8.98,154.13,154.04,2.6778]
[1729060947967,8.98,154.11,154.07,8.98]
[1729060948663,1.4038,154.13,154.04,13.8]
[1729060948664,8.98,154.1,154.04,13.8]
[1729060948862,8.98,154.08,154.04,8.98]
[1729060949062,8.98,154.08,154.03,13.8]
[1729060949265,3.2452,154.07,154.03,17.0459]
[1729060950867,3.2452,154.07,154.04,3.2456]
[1729060952368,8.98,154.07,154.03,4.82]
[1729060952570,8.98,154.07,154.02,4.82]
[1729060953162,3.2453,154.06,154.02,8.066]
[1729060953360,8.98,154.07,154.02,8.066]
[1729060953671,8.98,154.07,154.02,17.046]
[1729060954472,3.2455,154.05,154.02,13.8]
[1729060954670,8.98,154.07,154.02,13.8]
[1729060955069,3.2454,154.06,154.02,17.046]
[1729060956165,3.2455,154.05,154.02,17.046]
[1729060957778,6.2506,154.12,154.03,8.98]
[1729060957977,8.98,154.1,154.06,8.98]
[1729060958168,12.2246,154.1,154.06,8.98]
[1729060958477,8.98,154.1,154.06,12.2253]
[1729060959476,3.2447,154.09,154.06,12.2253]
[1729060959879,3.2447,154.09,154.06,3.2453]
[1729060960071,8.98,154.08,154.03,8.98]
[1729060960283,3.2454,154.06,154.02,13.8]
[1729060961177,8.98,154.09,154.05,3.2454]
[1729060961677,12.2246,154.09,154.04,3.2455]
[1729060961873,12.2246,154.09,154.03,8.98]
[1729060962478,12.2246,154.09,154.05,12.2253]
[1729060962683,12.2246,154.09,154.05,8.98]
[1729060963488,12.2246,154.09,154.06,3.2452]
[1729060965184,3.2452,154.07,154.03,12.2257]
[1729060965495,8.98,154.08,154.02,13.8]
[1729060965781,3.2453,154.06,154.02,17.0459]
[1729060966591,3.2453,154.06,154.03,3.2459]
[1729060966978,3.2453,154.06,154.03,12.2259]
[1729060967290,8.98,154.09,154.05,12.2254]
[1729060968183,3.245,154.08,154.05,12.2254]
[1729060968888,3.245,154.08,154.05,3.2454]
[1729060969091,3.2461,154.03,153.99,3.2466]
[1729060969300,12.2261,154.03,153.99,3.2466]
[1729060974895,8.98,154.03,153.98,4.82]
[1729060975193,3.2456,154.05,154.0,8.98]
[1729060975802,3.2456,154.05,154.01,3.2463]
[1729060976885,124.71382623,154.13,154.0,8.98]
[1729060977089,12.2252,154.07,154.03,3.2458]
[1729060977295,8.98,154.08,154.03,8.98]
[1729060977497,8.98,154.1,154.04,8.98]
[1729060978198,3.2448,154.09,154.06,3.2451]
[1729060978898,8.98,154.1,154.04,8.98]
[1729060979101,3.2451,154.08,154.04,8.98]
[1729060979501,3.2447,154.09,154.05,3.2454]
[1729060979704,8.98,154.1,154.06,8.98]
[1729060980093,3.2447,154.09,154.06,12.2252]
[1729060980792,3.2447,154.09,154.06,8.98]
[1729060981698,3.2447,154.09,154.05,3.2454]
[1729060981894,8.98,154.06,154.01,8.98]
[1729060982209,3.2455,154.05,154.02,4.82]
[1729060982403,8.98,154.04,154.02,4.82]
[1729060982598,3.2461,154.03,153.99,17.0467]
[1729060983304,3.2461,154.03,154.0,3.2465]
[1729060983499,3.2461,154.02,153.99,4.82]
[1729060984409,3.246,154.03,153.99,8.0666]
[1729060985609,14.03,154.03,153.96,8.0672]
[1729060985801,14.03,154.01,153.92,1.3787]
[1729060986008,14.03,154.01,153.93,4.82]
[1729060986704,3.247,153.98,153.94,3.2477]
[1729060986905,2.7656,154.04,153.95,14.03]
[1729060987207,3.2461,154.03,153.98,3.2468]
[1729060987411,3.2461,154.03,153.98,8.0668]
[1729060987713,2.7656,154.04,153.98,8.0668]
[1729060987906,3.2462,154.02,153.98,8.0668]
[1729060991910,3.2461,154.03,153.99,3.2466]
[1729060992708,3.2463,154.02,153.98,8.067]
[1729060998010,2.7656,154.04,153.98,4.82]
[1729060998215,3.2458,154.04,154.0,3.2465]
[1729060999307,3.2458,154.04,153.98,4.82]
[1729060999607,4.82,154.06,154.01,3.2462]
[1729060999809,3.2456,154.05,154.01,3.2462]
[1729061000414,3.2456,154.05,154.02,3.2461]
[1729061000812,3.2454,154.06,153.99,14.03]
[1729061001306,3.2451,154.07,153.99,14.03]
[1729061001502,3.2451,154.07,154.01,14.03]
[1729061001917,3.2451,154.07,154.03,3.2458]
[1729061005817,3.2451,154.07,154.03,12.2158]
[1729061009627,13.79,154.08,154.03,12.2158]
[1729061009824,3.2453,154.06,154.03,12.2158]
[1729061010624,130.46988512,154.13,154.05,8.97]
[1729061010815,121.49988512,154.13,154.09,8.97]
[1729061011528,121.49988512,154.13,154.1,8.97]
[1729061011727,15.1268,154.16,154.1,8.97]
[1729061012426,15.1268,154.16,154.1,12.2143]
[1729061012427,3.2439,154.13,154.1,12.2143]
[1729061013228,3.2439,154.13,154.1,8.97]
[1729061016130,3.2439,154.13,154.09,12.2146]
[1729061020730,3.2439,154.13,154.1,8.97]
[1729061020929,8.97,154.14,154.11,3.2442]
[1729061020930,3.2437,154.14,154.11,3.2442]
[1729061023538,10.3068,154.16,154.12,8.97]
[1729061023827,1.0,154.18,154.15,8.97]
[1729061024225,1.0,154.18,154.16,3.2431]
[1729061024532,1.0,154.18,154.15,8.97]
[1729061025319,4.2429,154.18,154.15,3.2433]
[1729061025524,4.2429,154.18,154.14,13.79]
[1729061026120,4.2429,154.18,154.14,17.0335]
[1729061035747,4.2429,154.18,154.14,13.79]
[1729061035748,3.2433,154.16,154.14,13.79]
[1729061036044,1.0,154.18,154.14,4.82]
[1729061037035,8.97,154.16,154.07,1.4175]
[1729061037246,8.97,154.12,153.97,3.23896178]
[1729061037447,25.29,154.18,153.97,3.23896178]
[1729061037448,8.97,154.13,154.07,8.97]
[1729061037750,3.2442,154.12,154.09,8.97]
[1729061038845,8.97,154.13,154.09,8.97]
[1729061039042,3.2443,154.11,154.09,8.97]
[1729061039842,3.2443,154.11,154.08,3.2447]
[1729061040151,3.2446,154.09,154.06,8.0452]
[1729061040353,8.97,154.11,154.06,8.0452]
[1729061040547,3.2445,154.1,154.06,8.0452]
[1729061040752,3.2445,154.1,154.07,8.97]
[1729061041253,8.97,154.1,154.06,4.82]
[1729061041954,3.2447,154.09,154.06,4.82]
[1729061043052,3.2449,154.08,154.06,4.82]
[1729061051167,8.97,154.09,153.99,4.2112]
[1729061051470,3.2454,154.06,154.02,3.246]
[1729061051964,8.97,154.07,154.02,3.246]
[1729061052165,8.97,154.06,154.01,4.82]
[1729061052468,8.97,154.03,153.99,4.82]
[1729061053579,3.2463,154.02,153.99,4.82]
[1729061055068,12.2163,154.02,153.99,4.82]
[1729061055876,3.2465,154.01,153.99,4.82]
[1729061056075,8.97,154.02,153.97,3.2471]
[1729061056473,12.2167,154.0,153.96,8.0674]
[1729061056974,12.2167,154.0,153.96,4.82]
[1729061057674,3.2467,154.0,153.96,13.79]
[1729061058576,8.97,154.0,153.96,4.82]
[1729061058874,8.97,153.99,153.96,4.82]
[1729061059276,8.97,153.99,153.95,3.2474]
[1729061059480,8.97,153.99,153.94,3.2477]
[1729061060369,3.2472,153.97,153.94,3.2477]
[1729061061374,3.2472,153.97,153.93,8.97]
[1729061061676,8.97,153.97,153.93,4.82]
[1729061061869,3.2475,153.96,153.93,4.82]
[1729061062379,3.2475,153.96,153.92,8.068]
[1729061062580,12.2177,153.95,153.91,8.0683]
[1729061064581,12.2177,153.95,153.91,4.82]
[1729061064783,12.2175,153.96,153.92,3.2482]
[1729061065181,12.2175,153.96,153.91,13.79]
[1729061066377,12.2175,153.96,153.93,3.248]
[1729061066676,8.97,153.96,153.93,3.248]
[1729061066881,8.97,153.98,153.92,8.97]
[1729061067079,8.97,153.99,153.94,8.97]
[1729061068482,3.247,153.98,153.95,3.2476]
[1729061068983,12.2169,153.99,153.95,3.2476]
[1729061069383,8.97,153.99,153.95,3.2476]
[1729061069579,8.97,153.97,153.95,3.2476]
[1729061070792,3.2471,153.98,153.95,3.2476]
[1729061071488,3.2471,153.98,153.93,8.97]
[1729061071693,3.2473,153.97,153.94,3.2477]
[1729061072490,12.2173,153.97,153.94,3.2477]
[1729061073194,12.2173,153.97,153.93,12.218]
[1729061073195,3.2474,153.96,153.93,12.218]
[1729061073892,8.97,153.97,153.93,12.218]
[1729061073893,12.2172,153.97,153.93,12.218]
[1729061074891,12.2172,153.97,153.93,8.97]
[1729061075088,12.2172,153.97,153.94,3.2478]
[1729061076881,12.2172,153.97,153.93,8.97]
[1729061076882,8.97,153.97,153.93,8.97]
[1729061077084,3.2468,153.99,153.96,3.2473]
[1729061077484,8.97,154.0,153.94,8.97]
[1729061077681,3.2473,153.97,153.94,12.2177]
[1729061078893,3.2473,153.97,153.94,3.2477]
[1729061080495,8.97,153.99,153.93,8.97]
[1729061080789,3.247,153.98,153.95,3.2476]
[1729061082189,3.2469,153.99,153.95,3.2475]
[1729061082392,12.2169,153.99,153.95,3.2475]
[1729061084490,3.2471,153.98,153.95,3.2475]
[1729061086988,8.97,153.99,153.95,3.2475]
[1729061087293,3.247,153.98,153.95,3.2475]
[1729061089604,12.217,153.98,153.95,3.2475]
[1729061093407,12.217,153.98,153.93,13.79]
[1729061093408,3.2474,153.96,153.93,17.0379]
[1729061093704,3.2474,153.96,153.93,8.0679]
[1729061094004,3.2474,153.96,153.93,4.82]
[1729061095399,3.2474,153.96,153.94,3.2478]
[1729061097106,12.2166,154.0,153.97,3.247]
[1729061097604,3.2469,153.99,153.96,3.2474]
[1729061098203,1.3694,154.05,153.97,13.79]
[1729061098507,8.97,154.04,153.98,8.97]
[1729061099112,8.97,154.03,153.98,8.97]
[1729061099613,12.2159,154.03,154.0,3.2464]
[1729061100604,8.97,154.02,153.84,73.17000567]
[1729061100802,8.97,154.0,153.95,4.82]
[1729061101406,3.247,153.99,153.95,8.0675]
[1729061102314,12.2166,154.0,153.96,3.2472]
[1729061104412,3.2469,153.99,153.94,4.82]
[1729061104610,3.2469,153.99,153.95,3.2475]
[1729061108009,3.2466,154.0,153.97,3.2472]
[1729061108212,3.2466,154.0,153.95,8.97]
[1729061108213,12.2166,154.0,153.95,8.97]
[1729061108716,12.2166,154.0,153.96,3.2473]
[1729061108912,1.3644,154.02,153.94,4.82]
[1729061108913,8.97,153.97,153.94,4.82]
[1729061109211,8.97,153.96,153.91,1.4097]
[1729061109414,12.2181,153.93,153.9,92.39423305]
[1729061109606,8.97,153.92,153.9,1.0]
[1729061110624,3.2484,153.91,153.9,1.0]
[1729061112011,8.97,153.92,153.9,1.0]
[1729061112722,12.2183,153.92,153.9,1.0]
[1729061113926,3.2484,153.91,153.9,1.0]
[1729061114220,8.97,153.92,153.86,1.0]
[1729061114421,8.97,153.87,153.86,1.0]
[1729061116922,12.2193,153.87,153.86,1.0]
[1729061117818,8.97,153.87,153.86,1.0]
[1729061118925,12.2193,153.87,153.86,1.0]
[1729061121613,8.97,153.87,153.82,1.0]
[1729061121814,8.97,153.84,153.82,1.0]
[1729061122527,3.2493,153.87,153.84,3.2498]
[1729061122825,8.97,153.86,153.84,3.2498]
[1729061123126,8.97,153.87,153.85,3.2497]
[1729061123320,8.97,153.87,153.82,9.97]
[1729061123520,8.97,153.86,153.82,1.0]
[1729061123919,8.97,153.86,153.83,3.25]
[1729061124619,3.2488,153.9,153.86,3.2493]
[1729061124814,8.97,153.89,153.86,3.2493]
[1729061125021,8.97,153.89,153.84,13.79]
[1729061125218,8.97,153.88,153.85,3.2496]
[1729061128324,3.2498,153.85,153.82,4.2503]
[1729061128524,12.2198,153.85,153.82,4.2503]
[1729061128727,8.97,153.85,153.82,1.0]
[1729061129030,3.2499,153.84,153.82,1.0]
[1729061129638,8.97,153.85,153.82,1.0]
[1729061129831,12.2199,153.85,153.82,1.0]
[1729061130230,8.97,153.83,153.82,1.0]
[1729061131320,12.2198,153.85,153.82,4.2503]
[1729061133027,8.97,153.85,153.84,3.2499]
[1729061133932,8.97,153.85,153.83,3.25]
[1729061135932,12.2199,153.84,153.82,1.0]
[1729061136134,8.97,153.84,153.82,1.0]
[1729061136327,8.97,153.84,153.82,4.2502]
[1729061136834,8.97,153.85,153.82,4.2502]
[1729061138037,8.97,153.85,153.82,1.0]
[1729061138639,8.97,153.85,153.83,3.2501]
[1729061138834,8.97,153.85,153.82,1.0]
[1729061139040,12.219,153.89,153.86,3.2495]
[1729061139241,8.97,153.91,153.86,8.97]
[1729061139627,12.2185,153.91,153.88,3.249]
[1729061140330,4.82,153.94,153.86,8.97]
[1729061140331,8.97,153.92,153.86,8.97]
[1729061140534,8.97,153.94,153.89,8.97]
[1729061140733,4.82,153.97,153.89,8.97]
[1729061140946,3.27514465,153.98,153.93,8.97]
[1729061140947,8.97,153.98,153.93,8.97]
[1729061141138,4.82,154.02,153.94,8.97]
[1729061141334,8.97,154.0,153.96,8.97]
[1729061141948,8.97,153.97,153.89,1.4217]
[1729061142140,12.2174,153.96,153.92,4.82]
[1729061142546,8.97,153.93,153.9,3.2486]
[1729061142744,8.97,153.93,153.89,4.82]
[1729061142944,8.97,153.94,153.89,13.79]
[1729061144451,12.2179,153.94,153.89,17.0387]
[1729061147043,12.2179,153.94,153.89,8.0687]
[1729061148353,8.97,153.93,153.89,4.82]
[1729061148952,8.97,153.92,153.86,8.97]
[1729061149151,8.97,153.92,153.87,4.82]
[1729061149453,3.2485,153.91,153.88,3.2491]
[1729061150654,12.2182,153.93,153.89,3.2488]
[1729061151252,8.97,153.93,153.91,3.2484]
[1729061151457,12.2176,153.95,153.91,3.2484]
[1729061151846,3.2478,153.94,153.91,3.2484]
[1729061152043,8.97,153.93,153.88,8.97]
[1729061152247,4.82,153.96,153.87,4.82]
[1729061152248,8.97,153.92,153.87,4.82]
[1729061152450,3.2485,153.91,153.87,4.82]
[1729061152645,8.97,153.92,153.87,8.0691]
[1729061152959,4.82,153.96,153.87,8.0691]
[1729061152960,8.97,153.91,153.87,4.82]
[1729061153860,8.97,153.91,153.86,12.2193]
[1729061154052,3.2488,153.9,153.86,13.79]
[1729061154252,3.2488,153.9,153.87,3.2493]
[1729061154863,8.97,153.9,153.86,4.82]
[1729061155058,3.249,153.89,153.86,4.82]
[1729061156046,4.82,153.96,153.88,3.2489]
[1729061156047,3.2483,153.92,153.88,3.2489]
[1729061156252,8.97,153.93,153.87,8.97]
[1729061156657,12.2181,153.93,153.89,3.2487]
[1729061159257,4.82,153.96,153.89,3.2487]
[1729061159467,8.97,153.93,153.87,8.97]
[1729061160060,12.2182,153.93,153.88,3.2491]
[1729061160260,8.97,153.93,153.88,3.2491]
[1729061160468,12.2181,153.93,153.89,3.2488]
[1729061161658,3.2477,153.95,153.9,12.2185]
[1729061161862,8.97,153.96,153.91,8.97]
[1729061163073,1.4046,153.97,153.92,8.97]
[1729061163361,19.08989113,154.06,153.89,4.82]
[1729061163362,1.4303,154.05,153.96,8.97]
[1729061163569,8.97,154.04,153.99,3.2467]
[1729061163761,8.97,154.04,153.99,12.2167]
[1729061164356,8.97,154.03,153.99,3.2467]
[1729061164558,8.97,154.03,153.98,8.97]
[1729061164865,3.2465,154.0,153.97,12.2171]
[1729061165061,8.97,154.01,153.96,4.82]
[1729061165366,8.97,154.0,153.96,4.82]
[1729061166266,8.97,154.02,153.97,3.247]
[1729061166455,1.4303,154.05,154.0,8.97]
[1729061166660,8.97,154.04,153.98,8.97]
[1729061166862,3.2463,154.02,153.98,8.97]
[1729061167056,8.97,154.0,153.96,4.82]
[1729061168066,3.2469,153.99,153.96,4.82]
[1729061168264,8.97,154.0,153.96,4.82]
[1729061168461,3.2468,153.99,153.96,4.82]
[1729061171872,3.247,153.98,153.96,4.82]
[1729061172967,3.247,153.98,153.95,12.2175]
[1729061173172,8.97,153.97,153.92,4.82]
[1729061173570,8.97,153.96,153.92,4.82]
[1729061173771,3.2476,153.96,153.92,17.0381]
[1729061174876,12.2176,153.96,153.92,8.0681]
[1729061175069,3.2478,153.94,153.92,4.82]
[1729061176971,3.2477,153.95,153.92,4.82]
[1729061178077,3.2479,153.94,153.89,98.34258848]
[1729061178274,8.97,153.93,153.9,4.82]
[1729061178470,8.97,153.93,153.89,4.82]
[1729061178672,3.2484,153.92,153.89,8.0688]
[1729061178869,4.82,153.97,153.89,8.0688]
[1729061178870,8.97,153.95,153.89,17.0388]
[1729061180267,3.2482,153.93,153.89,17.0388]
[1729061183280,3.2483,153.92,153.89,8.0688]
[1729061183578,8.97,153.91,153.86,8.97]
[1729061183782,8.97,153.91,153.87,4.82]
[1729061184172,3.2489,153.89,153.87,4.82]
[1729061185779,8.97,153.88,153.84,8.97]
[1729061186080,8.97,153.88,153.84,4.82]
[1729061186278,3.2495,153.86,153.84,4.82]
[1729061186876,3.2495,153.86,153.82,1.0]
[1729061187078,3.2495,153.86,153.83,4.82]
[1729061188367,8.97,153.87,153.83,4.82]
[1729061188569,3.2497,153.85,153.83,4.82]
[1729061189882,8.97,153.84,153.82,1.0]
[1729061190478,3.2501,153.83,153.82,1.0]
[1729061195489,12.22,153.84,153.82,1.0]
[1729061195690,8.97,153.85,153.82,1.0]
[1729061196179,12.2198,153.85,153.82,4.2503]
[1729061196891,8.0889,153.89,153.84,3.2498]
[1729061197184,8.97,153.87,153.84,3.2498]
[1729061197687,3.2491,153.88,153.85,3.2496]
[1729061197881,8.97,153.89,153.83,4.84]
[1729061198080,8.97,153.9,153.85,8.97]
[1729061198481,12.2188,153.9,153.86,3.2494]
[1729061198682,12.2188,153.9,153.85,8.97]
[1729061199384,3.2485,153.91,153.87,3.2491]
[1729061199587,10.3132,153.92,153.86,8.97]
[1729061199784,4.84,153.96,153.89,8.97]
[1729061200093,3.2482,153.93,153.89,12.2187]
[1729061200697,3.2482,153.93,153.9,3.2486]
[1729061200999,12.2182,153.93,153.87,13.81]
[1729061201182,8.97,153.93,153.88,3.2489]
[1729061201382,8.97,153.93,153.87,13.81]
[1729061201782,14.05,153.95,153.87,4.84]
[1729061201982,3.2481,153.93,153.89,3.2487]
[1729061202183,14.05,153.95,153.87,18.89]
[1729061202589,8.0770349,153.96,153.87,18.89]
[1729061202787,3.2478,153.94,153.87,18.89]
[1729061203495,3.2478,153.94,153.89,3.2488]
[1729061204689,3.2478,153.94,153.87,18.89]
[1729061204889,3.2478,153.94,153.9,3.2486]
[1729061205496,22.08038336,153.97,153.87,18.89]
[1729061205698,3.2477,153.95,153.87,18.89]
[1729061206097,1.4173,153.98,153.92,14.05]
[1729061206303,3.247,153.98,153.92,18.89]
[1729061207113,3.247,153.98,153.94,3.2477]
[1729061208208,8.0867,154.0,153.96,3.2473]
[1729061208517,4.231,154.02,153.93,14.05]
[1729061209209,3.2466,154.0,153.96,3.2473]
[1729061210317,14.05,154.01,153.92,4.84]
[1729061211406,3.2472,153.98,153.94,3.2478]
[1729061212610,3.2472,153.98,153.95,3.2476]
[1729061212913,3.2468,153.99,153.93,4.82]
[1729061213105,14.05,153.99,153.93,8.068]
[1729061213810,3.2472,153.97,153.94,3.2478]
[1729061214707,14.05,153.99,153.94,3.2478]
[1729061214909,3.2468,153.99,153.95,3.2474]
[1729061215225,18.281,154.02,153.93,4.82]
[1729061215507,3.2468,153.99,153.96,3.2474]
[1729061215714,18.281,154.02,153.96,3.2474]
[1729061215917,3.2464,154.01,153.96,3.2473]
[1729061216121,4.231,154.02,153.94,14.05]
[1729061216307,18.281,154.02,153.93,4.82]
[1729061217615,3.2469,153.99,153.96,3.2474]
[1729061217824,3.2469,153.99,153.93,4.82]
[1729061217825,14.05,154.0,153.93,4.82]
[1729061218009,14.05,154.0,153.92,4.82]
[1729061218218,14.05,153.98,153.92,4.82]
[1729061218411,14.05,153.98,153.91,4.82]
[1729061218412,3.248,153.94,153.91,4.82]
[1729061218918,3.27919968,153.97,153.91,4.82]
[1729061219516,3.27919968,153.97,153.89,1.4094]
[1729061219705,3.27919968,153.97,153.89,6.2294]
[1729061219910,3.2482,153.93,153.89,9.4781]
[1729061220619,3.2484,153.92,153.88,3.249]
[1729061220807,18.87,153.96,153.88,4.82]
[1729061220808,14.05,153.94,153.88,4.82]
[1729061221818,3.2486,153.91,153.87,3.2493]
[1729061222022,14.05,153.92,153.86,4.82]
[1729061222412,14.05,153.93,153.88,3.249]
[1729061223014,3.2484,153.92,153.88,3.249]
[1729061225330,3.248,153.93,153.9,3.2486]
[1729061226124,3.2485,153.91,153.88,3.2489]
[1729061226828,3.2487,153.9,153.86,4.9]
[1729061227125,14.05,153.9,153.84,4.9]
[1729061227331,15.444,153.9,153.84,4.9]
[1729061227630,3.2495,153.87,153.84,4.9]
[1729061228132,3.2495,153.87,153.83,4.9]
[1729061229428,3.2495,153.87,153.84,3.2499]
[1729061229631,3.2495,153.86,153.83,4.9]
[1729061231025,3.22315659,153.88,153.82,1.0]
[1729061231227,3.25,153.84,153.82,1.0]
[1729061231421,14.05,153.86,153.82,1.0]
[1729061231624,3.30927642,153.87,153.82,1.0]
[1729061232927,3.30927642,153.87,153.82,4.2503]
[1729061233134,3.30927642,153.87,153.82,1.0]
[1729061233931,3.2499,153.85,153.82,1.0]
[1729061234533,3.2499,153.85,153.82,4.2503]
[1729061234721,3.2497,153.86,153.82,4.2503]
[1729061235426,3.2497,153.86,153.83,3.2501]
[1729061235735,3.2494,153.87,153.82,1.0]
[1729061236129,18.95,153.88,153.82,1.0]
[1729061236441,14.05,153.88,153.84,3.2498]
[1729061237428,3.2493,153.87,153.84,3.2498]
[1729061241932,8.99,153.86,153.84,3.2498]
[1729061242749,8.99,153.86,153.83,3.25]
[1729061242933,8.99,153.86,153.82,1.0]
[1729061243134,8.99,153.85,153.82,1.0]
[1729061243730,3.2499,153.84,153.82,1.0]
[1729061243932,8.99,153.85,153.82,1.0]
[1729061244640,12.2398,153.85,153.82,1.0]
[1729061245845,4.59908172,153.89,153.82,9.99]
[1729061246145,8.99,153.88,153.82,9.99]
[1729061246344,12.2392,153.88,153.84,3.2498]
[1729061246840,8.99,153.88,153.84,3.2498]
[1729061247344,3.2493,153.87,153.84,12.2398]
[1729061247842,3.2492,153.88,153.84,17.1398]
[1729061248247,12.2392,153.88,153.84,8.1498]
[1729061248634,3.2496,153.86,153.84,4.9]
[1729061250445,8.99,153.89,153.84,13.89]
[1729061250646,12.2389,153.89,153.86,3.2493]
[1729061250944,8.99,153.91,153.85,8.99]